bitfinex-derivatives/quotes_ETHF0:USTF0_20210111
["timestamp","ask_amount","ask_price","bid_price","bid_amount"]
[1610399672879,10.0,1029.0,1028.4,4.00959]
[1610399674079,10.0,1029.0,1028.6,4.00959]
[1610399675383,10.0,1029.0,1028.3,0.4]
[1610399675583,12.059,1029.0,1028.3,0.4]
[1610399675985,4.00959,1028.6,1028.4,4.00959]
[1610399676185,12.059,1029.0,1028.4,4.00959]
[1610399678087,12.059,1029.0,1028.9,4.00959]
[1610399678288,12.059,1029.0,1028.3,0.4]
[1610399680091,12.059,1029.0,1028.9,4.00959]
[1610399683593,10.0,1029.0,1028.9,4.00959]
[1610399686000,10.0,1029.0,1028.9,6.16589]
[1610399691104,10.0,1029.0,1028.9,2.1563]
[1610399691505,10.0,1029.0,1028.3,0.4]
[1610399691905,11.9026,1029.0,1028.3,0.4]
[1610399692105,4.00959,1028.7,1028.4,4.00959]
[1610399692305,11.9026,1029.0,1028.4,4.00959]
[1610399694206,11.9026,1029.0,1028.9,4.00959]
[1610399694405,10.0,1029.0,1028.9,4.00959]
[1610399702413,10.0,1029.0,1028.4,2.1099]
[1610399702615,10.0,1029.0,1028.0,81.2525]
[1610399703013,12.018,1029.0,1027.6,0.24064646]
[1610399703214,42.018,1029.0,1027.6,0.24064646]
[1610399703415,42.018,1029.0,1027.4,0.24142509]
[1610399703614,42.018,1029.0,1027.0,0.2423183]
[1610399703815,54.5991,1028.7,1027.0,0.2423183]
[1610399704015,30.0,1028.6,1026.8,0.24275027]
[1610399704215,30.0,1028.6,1026.7,0.48550055]
[1610399704216,56.4707,1028.7,1027.1,4.00959]
[1610399704416,86.4707,1028.7,1027.1,4.00959]
[1610399704615,56.4707,1028.7,1027.1,4.00959]
[1610399705216,86.4707,1028.7,1027.1,4.00959]
[1610399706217,4.00959,1027.4,1027.1,4.00959]
[1610399706616,6.19909,1027.4,1027.1,4.00959]
[1610399707417,2.1895,1027.4,1027.1,4.00959]
[1610399707919,2.0251,1027.7,1027.1,4.00959]
[1610399708120,4.00959,1027.7,1027.6,4.00959]
[1610399708521,1.7303,1028.1,1027.6,4.00959]
[1610399710217,1.7303,1028.1,1028.0,4.00959]
[1610399710818,4.00959,1028.4,1028.0,4.00959]
[1610399711217,1.8716,1028.7,1028.0,4.00959]
[1610399711420,6.5217,1028.9,1028.0,4.00959]
[1610399712220,12.018,1029.0,1028.8,4.00959]
[1610399715422,12.018,1029.0,1028.3,1.6453]
[1610399715623,12.018,1029.0,1028.2,58.4003]
[1610399716025,12.018,1029.0,1028.0,1.8506]
[1610399716223,12.018,1029.0,1028.1,4.00959]
[1610399717040,12.018,1029.0,1027.7,2.2821]
[1610399717223,12.018,1029.0,1027.4,61.3492]
[1610399718225,4.00959,1027.9,1027.4,5.62479]
[1610399718424,5.98759,1027.9,1027.2,0.4]
[1610399719625,16.24549,1027.9,1027.2,0.4]
[1610399719825,35.98759,1027.9,1027.2,0.4]
[1610399720026,61.8428,1027.7,1027.2,0.4]
[1610399720227,4.00959,1027.3,1027.2,0.4]
[1610399720432,16.97579,1027.3,1027.2,0.4]
[1610399720632,5.67349,1027.3,1027.2,0.4]
[1610399720836,35.67349,1027.3,1027.2,0.4]
[1610399721033,5.67349,1027.3,1027.2,0.4]
[1610399721432,5.67349,1027.3,1025.8,77.29657271]
[1610399721633,56.2955,1027.2,1025.8,77.0451]
[1610399722033,30.0,1027.2,1025.5,0.25196049]
[1610399722233,63.6094,1026.7,1025.3,0.2523615]
[1610399722438,95.3,1026.7,1025.3,0.2523615]
[1610399722633,65.3,1026.7,1025.3,0.2523615]
[1610399722833,4.00959,1025.4,1025.3,0.2523615]
[1610399723041,2.2075,1025.5,1025.2,0.25282253]
[1610399724037,2.2075,1025.5,1025.1,0.25326854]
[1610399724236,1.639,1025.8,1025.1,0.25326854]
[1610399724437,2.0881,1025.5,1024.9,0.25381219]
[1610399724836,4.00959,1025.0,1024.9,0.25381219]
[1610399725235,4.00959,1025.0,1024.8,0.50762438]
[1610399725236,4.00959,1025.0,1024.8,0.25512289]
[1610399725436,4.00959,1025.0,1024.6,0.25528404]
[1610399726242,4.00959,1025.0,1024.5,0.25396363]
[1610399726458,15.42479,1025.0,1024.5,0.25396363]
[1610399726838,4.00959,1024.6,1024.4,0.25412885]
[1610399727042,4.00959,1024.6,1024.2,0.50825769]
[1610399727043,4.00959,1024.6,1024.3,0.25407903]
[1610399727441,4.00959,1024.6,1024.2,0.25451764]
[1610399727838,4.00959,1024.6,1024.1,0.25484941]
[1610399728540,4.00959,1024.6,1024.0,0.50969883]
[1610399728541,4.00959,1024.6,1024.0,0.25485766]
[1610399728939,4.00959,1024.3,1024.0,0.25485766]
[1610399729140,4.00959,1024.3,1024.1,0.25505862]
[1610399729339,1.7008,1024.7,1024.0,0.25537919]
[1610399729939,1.7008,1024.7,1024.0,2.52077919]
[1610399730140,2.179,1025.2,1024.1,0.25550202]
[1610399730341,2.0881,1025.5,1024.1,0.25550202]
[1610399730741,58.2953,1025.6,1024.0,2.52133021]
[1610399730941,4.00959,1025.0,1024.7,4.00959]
[1610399731141,58.2953,1025.6,1024.7,4.00959]
[1610399731341,2.4248,1025.1,1024.7,4.00959]
[1610399731941,2.4248,1025.1,1024.2,0.25548343]
[1610399732942,4.00959,1024.9,1024.3,0.2555088]
[1610399733343,84.73979,1024.9,1024.2,0.25580645]
[1610399733743,84.73979,1024.9,1024.0,0.25603702]
[1610399734343,84.73979,1024.9,1023.9,0.25628812]
[1610399734745,84.73979,1024.9,1023.8,0.25660699]
[1610399734944,4.00959,1023.9,1023.8,0.25660699]
[1610399735143,4.00959,1023.9,1023.7,0.25668397]
[1610399735543,4.00959,1023.9,1023.6,0.25676171]
[1610399735944,4.00959,1023.9,1023.5,0.51352342]
[1610399735945,4.00959,1023.9,1023.5,0.25681056]
[1610399736145,4.00959,1023.9,1023.2,0.25740713]
[1610399736345,74.4705,1023.6,1023.2,0.25740713]
[1610399736545,74.4705,1023.6,1023.1,0.25790853]
[1610399736744,76.6195,1023.6,1023.1,0.25790853]
[1610399736945,76.6195,1023.6,1022.7,1.03163413]
[1610399736946,4.00959,1023.2,1022.7,0.25829377]
[1610399737146,4.00959,1023.2,1022.6,0.2585016]
[1610399737945,4.00959,1023.2,1022.7,0.25841859]
[1610399738345,1.5751,1023.3,1022.7,0.25841859]
[1610399738545,1.5751,1023.3,1022.8,0.25804457]
[1610399738745,2.149,1023.6,1022.8,0.25804457]
[1610399738945,2.149,1023.6,1023.1,4.00959]
[1610399739145,4.00959,1024.0,1023.2,0.25728615]
[1610399739346,4.00959,1024.0,1023.2,2.61198615]
[1610399739547,1.7994,1024.1,1023.4,0.25700644]
[1610399740247,6.3012,1024.7,1023.5,0.25667463]
[1610399740647,62.4374,1025.3,1023.5,2.06537463]
[1610399740848,4.00959,1024.8,1023.8,4.00959]
[1610399741053,6.06879,1024.8,1023.8,4.00959]
[1610399742761,2.0592,1024.8,1023.8,4.00959]
[1610399742965,2.0592,1024.8,1024.1,4.00959]
[1610399743169,2.0592,1024.8,1024.1,15.02889]
[1610399743352,6.1499,1025.8,1024.1,4.00959]
[1610399743551,6.1499,1025.8,1024.4,55.9259]
[1610399743750,19.43068401,1026.3,1024.4,57.4882]
[1610399743951,6.3549,1026.3,1024.4,57.74344789]
[1610399744152,13.07190026,1026.6,1024.4,57.74344789]
[1610399744352,19.42257445,1026.9,1024.7,0.25488316]
[1610399744653,6.3533,1026.9,1024.9,0.25454583]
[1610399744852,6.3533,1026.9,1025.7,4.00959]
[1610399744853,4.00959,1026.9,1025.7,4.00959]
[1610399745052,4.00959,1026.9,1025.7,6.03399]
[1610399745253,6.5395,1027.0,1025.7,56.6543]
[1610399745454,13.06029869,1027.6,1025.7,56.6543]
[1610399745854,13.05904162,1027.7,1025.7,56.6543]
[1610399746456,13.05581845,1027.9,1025.7,2.0244]
[1610399746656,13.05581845,1027.9,1026.1,68.0792]
[1610399746856,13.05311416,1028.2,1026.1,68.0792]
[1610399747056,13.05311416,1028.2,1027.6,4.00959]
[1610399747258,13.05185948,1028.4,1027.6,4.00959]
[1610399747658,13.04750988,1028.5,1027.4,63.1268]
[1610399747859,13.04750988,1028.5,1027.4,64.8178]
[1610399748059,13.04566327,1028.7,1027.4,64.8178]
[1610399748260,13.04422823,1028.8,1027.4,64.8178]
[1610399748658,25.41482855,1029.0,1027.4,64.8178]
[1610399748659,13.04323825,1028.9,1027.4,64.8178]
[1610399748960,4.00959,1028.5,1027.4,64.8178]
[1610399749162,5.77909,1028.5,1027.4,64.8178]
[1610399750964,4.00959,1028.3,1027.4,64.8178]
[1610399751163,4.00959,1028.3,1027.4,1.691]
[1610399751964,4.00959,1028.3,1026.8,72.8225]
[1610399752966,4.00959,1028.1,1026.8,72.8225]
[1610399753165,5.61209,1028.1,1026.8,72.8225]
[1610399754766,18.66528027,1028.1,1026.8,72.8225]
[1610399754966,4.00959,1027.1,1026.4,4.00959]
[1610399755167,5.93619,1027.1,1026.4,4.00959]
[1610399755965,5.93619,1027.1,1025.8,79.5345]
[1610399756365,5.93619,1027.1,1025.6,0.25139434]
[1610399756565,5.93619,1027.1,1025.4,0.25220586]
[1610399756765,5.93619,1027.1,1025.2,68.81725504]
[1610399756965,4.00959,1026.4,1025.8,4.00959]
[1610399757164,6.39929,1026.4,1025.8,4.00959]
[1610399758066,6.39929,1026.4,1025.2,68.81761403]
[1610399758668,2.3897,1026.4,1025.2,68.81761403]
[1610399758971,2.3897,1026.4,1025.3,0.25250897]
[1610399759169,2.3897,1026.4,1025.3,1.77060897]
[1610399759369,2.3897,1026.4,1025.6,0.25205128]
[1610399759569,1.9266,1027.1,1026.3,4.00959]
[1610399759969,1.9266,1027.1,1026.3,11.80449]
[1610399760171,5.61209,1028.1,1026.3,11.80449]
[1610399761570,4.00959,1027.9,1027.3,4.00959]
[1610399762673,4.00959,1027.9,1026.7,72.3464]
[1610399762871,4.00959,1027.9,1026.2,1.79241548]
[1610399763071,4.00959,1027.9,1026.2,1.5416]
[1610399763571,1.6025,1028.1,1026.2,1.5416]
[1610399763770,13.05008151,1028.2,1026.2,1.5416]
[1610399763971,102.01817762,1028.3,1026.2,1.5416]
[1610399764372,12.5904,1028.3,1026.2,1.5416]
[1610399764572,12.5904,1028.3,1026.4,76.313]
[1610399764771,6.1636,1028.3,1026.4,76.313]
[1610399765174,6.1636,1028.3,1026.4,76.56213207]
[1610399765672,10.17319,1028.3,1028.1,4.00959]
[1610399765872,4.00959,1028.3,1028.1,4.00959]
[1610399767778,4.00959,1028.3,1027.4,76.9667]
[1610399768677,1.7695,1028.5,1027.4,76.9667]
[1610399769077,6.1948,1028.9,1027.4,76.9667]
[1610399769778,4.00959,1028.6,1028.2,4.00959]
[1610399769978,6.14739,1028.6,1028.2,4.00959]
[1610399770579,6.14739,1028.6,1027.4,76.9667]
[1610399770791,6.14739,1028.6,1027.1,2.4792]
[1610399771188,36.14739,1028.6,1026.9,0.24745223]
[1610399771387,6.14739,1028.6,1026.7,0.24892231]
[1610399771579,6.14739,1028.6,1026.6,75.5061]
[1610399771780,2.1378,1028.6,1027.3,4.00959]
[1610399773179,2.1378,1028.6,1026.6,75.5061]
[1610399774980,2.1378,1028.6,1026.6,105.5061]
[1610399775180,2.3756,1028.6,1026.6,105.5061]
[1610399775379,2.3756,1028.6,1026.7,0.24975073]
[1610399775584,2.3756,1028.6,1026.8,0.24967541]
[1610399775779,2.3756,1028.6,1028.5,4.00959]
[1610399780292,4.00959,1028.9,1028.5,4.00959]
[1610399780492,10.0,1029.0,1028.5,4.00959]
[1610399781093,10.0,1029.0,1028.2,65.049]
[1610399781293,12.2082,1029.0,1028.2,65.049]
[1610399781693,12.2082,1029.0,1028.9,4.00959]
[1610399782093,12.2082,1029.0,1027.3,1.9172322]
[1610399782493,12.2082,1029.0,1027.3,1.6672]
[1610399782693,12.2082,1029.0,1027.2,0.24994644]
[1610399783704,12.2082,1029.0,1028.4,4.00959]
[1610399784309,12.2082,1029.0,1027.1,65.74906802]
[1610399784498,12.2082,1029.0,1027.1,65.4989]
[1610399785705,4.00959,1027.6,1027.2,4.00959]
[1610399786501,1.8412,1027.7,1027.2,4.00959]
[1610399787795,1.8412,1027.7,1026.7,2.061]
[1610399788195,1.8412,1027.7,1026.4,0.25176345]
[1610399788596,1.8412,1027.7,1026.3,0.25208923]
[1610399789197,1.8412,1027.7,1026.2,0.25197165]
[1610399789797,4.00959,1026.9,1026.4,4.00959]
[1610399789997,6.24539,1026.9,1026.4,4.00959]
[1610399791001,6.24539,1026.9,1025.9,0.50582188]
[1610399791002,6.24539,1026.9,1025.9,0.25325897]
[1610399791402,6.24539,1026.9,1025.8,0.25344324]
[1610399791604,6.24539,1026.9,1025.7,0.25349576]
[1610399791803,2.2358,1026.9,1026.4,4.00959]
[1610399793705,2.2358,1026.9,1026.7,4.00959]
[1610399794506,1.8412,1027.7,1026.7,4.00959]
[1610399794707,6.0757,1028.4,1026.7,4.00959]
[1610399794910,55.9329,1028.6,1026.7,4.00959]
[1610399794911,62.209,1028.6,1026.7,4.00959]
[1610399795309,62.209,1028.6,1026.7,4.26161173]
[1610399795511,6.2761,1028.6,1026.7,4.26161173]
[1610399795710,6.3773,1029.1,1026.9,67.0078]
[1610399795910,4.00959,1028.9,1028.5,4.00959]
[1610399796111,4.00959,1028.9,1027.7,59.5087]
[1610399797818,4.00959,1028.1,1027.9,4.00959]
[1610399798020,12.2082,1029.0,1027.9,4.00959]
[1610399798219,2.4714,1028.1,1027.9,4.00959]
[1610399798722,2.4714,1028.1,1027.7,59.5087]
[1610399799822,2.4714,1028.1,1028.0,4.00959]
[1610399800023,2.4714,1028.1,1027.7,59.5087]
[1610399801724,2.4714,1028.1,1027.9,4.00959]
[1610399801924,2.4714,1028.1,1027.7,59.5087]
[1610399803126,12.2082,1029.0,1027.0,0.25144658]
[1610399803524,12.2082,1029.0,1026.9,2.27717032]
[1610399803525,63.6399,1028.7,1026.9,2.27717032]
[1610399803723,65.1594,1028.7,1026.9,2.27717032]
[1610399803925,4.00959,1027.3,1027.2,4.00959]
[1610399804323,4.00959,1027.3,1026.8,0.25278696]
[1610399804524,4.00959,1027.3,1026.7,0.25291927]
[1610399804724,2.0398,1027.6,1026.7,0.25291927]
[1610399804924,2.0398,1027.6,1026.6,0.25318692]
[1610399805124,2.0398,1027.6,1026.5,2.62342649]
[1610399805525,2.0398,1027.6,1026.5,2.37]
[1610399805725,2.0398,1027.6,1026.4,0.25377603]
[1610399805926,4.00959,1027.1,1026.5,4.00959]
[1610399806125,1.98,1027.1,1026.5,4.00959]
[1610399807826,1.98,1027.1,1027.0,4.00959]
[1610399808825,2.0398,1027.6,1027.0,4.00959]
[1610399809325,6.2485,1028.6,1027.0,4.00959]
[1610399809927,4.00959,1028.5,1027.8,4.00959]
[1610399811329,4.00959,1028.5,1027.0,0.25245743]
[1610399811932,4.00959,1028.2,1027.8,4.00959]
[1610399812132,1.5195,1028.7,1027.8,4.00959]
[1610399812331,1.5213,1028.3,1027.8,4.00959]
[1610399813934,1.5213,1028.3,1028.2,4.00959]
[1610399814134,1.5213,1028.3,1027.3,1.9547]
[1610399817341,61.50659,1028.4,1027.3,1.9547]
[1610399817541,61.50659,1028.4,1027.1,0.25240846]
[1610399817542,1.6427,1028.3,1027.0,0.25253201]
[1610399817739,1.6427,1028.3,1026.8,0.25294183]
[1610399817941,4.00959,1027.2,1026.9,4.00959]
[1610399821346,1.523,1027.3,1026.9,4.00959]
[1610399821945,1.523,1027.3,1027.2,4.00959]
[1610399823445,4.00959,1027.7,1027.2,4.00959]
[1610399823844,4.00959,1027.7,1027.4,4.00959]
[1610399824046,4.00959,1027.7,1026.7,0.25336189]
[1610399824246,6.34269,1027.7,1026.7,0.25336189]
[1610399825047,2.3331,1027.7,1026.7,0.25336189]
[1610399825447,2.3331,1027.7,1026.8,0.25302223]
[1610399825848,2.3331,1027.7,1026.8,1.85062223]
[1610399826047,2.3331,1027.7,1027.6,4.00959]
[1610399826249,1.6427,1028.3,1027.6,4.00959]
[1610399826450,4.00959,1028.5,1027.6,4.00959]
[1610399828054,4.00959,1027.7,1027.6,4.00959]
[1610399828660,1.8796,1028.1,1027.6,4.00959]
[1610399829957,4.00959,1027.7,1027.6,4.00959]
[1610399830359,5.65849,1027.7,1027.6,4.00959]
[1610399831058,5.65849,1027.7,1026.8,1.84877166]
[1610399831559,1.6489,1027.7,1026.8,1.5976]
[1610399831759,1.6489,1027.7,1026.7,76.92062443]
[1610399831960,1.6489,1027.7,1027.6,4.00959]
[1610399833269,1.8796,1028.1,1027.6,4.00959]
[1610399833660,12.6881,1028.9,1027.6,4.00959]
[1610399834060,4.00959,1028.5,1027.2,69.3522]
[1610399834460,6.13379,1028.5,1027.2,69.3522]
[1610399835963,6.13379,1028.5,1028.3,4.00959]
[1610399837767,6.13379,1028.5,1027.2,69.3522]
[1610399837969,4.00959,1028.2,1028.1,4.00959]
[1610399838170,6.25599,1028.2,1028.1,4.00959]
[1610399838970,2.2464,1028.2,1028.1,4.00959]
[1610399843374,2.1242,1028.5,1028.1,4.00959]
[1610399843574,4.00959,1028.6,1028.1,4.00959]
[1610399843974,71.6355,1028.9,1028.3,4.00959]
[1610399844674,12.2082,1029.0,1028.3,4.00959]
[1610399844876,12.2082,1029.0,1027.1,0.25182233]
[1610399845075,12.2082,1029.0,1027.9,70.7742]
[1610399845676,12.2082,1029.0,1027.2,0.25144562]
[1610399845876,71.7849,1028.9,1027.2,0.25144562]
[1610399846076,4.00959,1028.0,1027.3,4.00959]
[1610399846276,54.5301,1027.9,1027.0,0.25203795]
[1610399846676,54.5301,1027.9,1026.8,0.25240071]
[1610399846876,54.5301,1027.9,1026.7,0.50480142]
[1610399846877,54.5301,1027.9,1026.7,0.25289063]
[1610399847678,54.5301,1027.9,1026.6,0.25349933]
[1610399848078,4.00959,1027.3,1027.0,4.00959]
[1610399848478,6.27879,1027.3,1027.0,4.00959]
[1610399850079,6.27879,1027.3,1027.2,4.00959]
[1610399850600,6.27879,1027.3,1026.6,0.25410803]
[1610399850990,6.27879,1027.3,1026.5,0.25439644]
[1610399851980,2.2692,1027.3,1027.0,4.00959]
[1610399852780,2.2692,1027.3,1026.4,0.25479329]
[1610399853180,2.2692,1027.3,1026.3,0.25617697]
[1610399853579,78.1364,1027.4,1026.3,0.25617697]
[1610399853981,4.00959,1026.4,1026.3,4.26576697]
[1610399854582,4.00959,1026.4,1026.3,4.00959]
[1610399854782,2.4856,1026.6,1026.3,4.00959]
[1610399855484,2.4856,1026.6,1026.3,4.26638463]
[1610399855985,2.4856,1026.6,1026.5,4.00959]
[1610399859087,2.4856,1026.6,1026.2,0.25680171]
[1610399859292,4.00959,1026.7,1026.2,0.25680171]
[1610399859987,4.00959,1027.1,1026.5,4.00959]
[1610399861193,4.00959,1027.1,1026.1,0.25758841]
[1610399861590,5.54659,1027.1,1026.2,0.25760502]
[1610399861990,4.00959,1026.3,1026.1,4.2673556]
[1610399862191,1.6557,1026.3,1026.1,4.00959]
[1610399862991,1.6557,1026.3,1026.1,4.26802593]
[1610399863190,1.6557,1026.3,1026.2,0.2583852]
[1610399863590,1.6557,1026.3,1026.2,0.51636247]
[1610399863992,1.6557,1026.3,1026.2,0.2583087]
[1610399864196,1.6557,1026.3,1026.1,4.26807267]
[1610399865093,1.6557,1026.3,1026.1,4.00959]
[1610399865693,1.6557,1026.3,1026.0,0.2588851]
[1610399866094,4.00959,1026.2,1025.9,4.26840157]
[1610399866798,4.00959,1026.2,1025.9,4.00959]
[1610399866998,4.00959,1026.2,1025.8,0.25895137]
[1610399867398,4.00959,1026.2,1025.6,0.25968985]
[1610399868099,4.00959,1026.2,1025.5,0.5193797]
[1610399868100,4.00959,1025.7,1025.5,0.26070547]
[1610399868297,5.59939,1025.7,1025.5,0.26070547]
[1610399868499,5.59939,1025.7,1025.4,4.27062009]
[1610399869200,5.59939,1025.7,1025.4,4.00959]
[1610399869999,4.00959,1025.5,1025.2,0.2611749]
[1610399870702,4.00959,1025.5,1025.0,0.26142496]
[1610399871001,4.00959,1025.5,1025.1,0.26145119]
[1610399871400,4.00959,1025.5,1025.0,0.2617314]
[1610399872002,4.00959,1025.5,1024.9,0.26162357]
[1610399872202,4.00959,1025.1,1024.9,0.26162357]
[1610399872803,4.00959,1025.1,1024.8,0.26190703]
[1610399874104,4.00959,1024.9,1024.8,0.26190703]
[1610399876103,6.02689,1025.2,1024.8,0.26190703]
[1610399876405,2.0173,1025.2,1024.8,59.4576]
[1610399876604,2.0173,1025.2,1025.0,0.26197571]
[1610399876803,1.5898,1025.7,1025.0,0.26197571]
[1610399877006,8.0871,1026.3,1025.0,0.26197571]
[1610399877007,1.6557,1026.3,1025.1,0.52332353]
[1610399877207,65.9216,1026.7,1025.1,0.52332353]
[1610399877406,23.74028322,1027.4,1025.4,0.2616828]
[1610399877609,56.2311,1027.2,1025.6,0.26141675]
[1610399877808,5.9511,1027.3,1025.6,0.26141675]
[1610399878209,4.00959,1026.5,1026.1,4.00959]
[1610399879009,2.3747,1026.6,1026.1,4.00959]
[1610399879809,5.9511,1027.3,1026.1,4.00959]
[1610399880210,4.00959,1026.9,1026.7,4.00959]
[1610399880611,1.8506,1026.9,1026.7,4.00959]
[1610399881612,1.5284,1027.5,1026.7,4.00959]
[1610399882217,1.5284,1027.5,1027.2,4.00959]
[1610399882421,1.5284,1027.5,1026.5,76.5046]
[1610399882821,9.9948,1027.5,1026.5,76.5046]
[1610399883220,9.9948,1027.5,1026.5,74.7427]
[1610399884113,4.00959,1026.6,1026.5,74.7427]
[1610399885516,4.00959,1026.6,1025.8,0.26079071]
[1610399886022,4.00959,1026.6,1025.7,0.25938037]
[1610399886220,4.00959,1026.1,1025.8,4.00959]
[1610399886620,4.00959,1026.1,1025.6,0.2590468]
[1610399887224,4.00959,1026.1,1025.5,0.25909409]
[1610399887431,2.4687,1026.3,1025.5,0.25909409]
[1610399888016,2.4687,1026.3,1025.6,0.25883004]
[1610399888216,6.47829,1026.3,1026.2,4.00959]
[1610399889116,6.47829,1026.3,1025.6,0.25883004]
[1610399889418,6.47829,1026.3,1025.5,0.25778051]
[1610399890119,4.00959,1025.8,1025.7,4.00959]
[1610399890519,4.00959,1025.8,1025.4,0.25766049]
[1610399890920,4.00959,1025.8,1025.3,0.25785972]
[1610399891821,1.5698,1026.0,1025.3,0.25785972]
[1610399892221,5.57939,1026.0,1025.6,4.00959]
[1610399892822,5.57939,1026.0,1025.3,0.25785972]
[1610399893822,5.57939,1026.0,1025.2,0.25917317]
[1610399894222,4.00959,1025.4,1025.2,0.25917317]
[1610399894422,6.04509,1025.4,1025.2,0.25917317]
[1610399894824,6.04509,1025.4,1025.1,0.26121944]
[1610399895225,6.04509,1025.4,1025.0,0.26180409]
[1610399895424,6.04509,1025.4,1024.9,0.52360817]
[1610399895425,6.04509,1025.4,1024.9,0.26223468]
[1610399896124,4.00959,1025.0,1024.9,0.26223468]
[1610399896526,4.00959,1025.0,1024.6,0.26376014]
[1610399896725,4.00959,1025.0,1024.5,0.26397855]
[1610399897728,56.492,1024.8,1024.4,0.26451793]
[1610399898126,4.00959,1024.5,1024.2,0.26494032]
[1610399898526,5.61899,1024.5,1024.2,0.26494032]
[1610399898726,5.61899,1024.5,1024.1,0.26510405]
[1610399898926,87.53059,1024.5,1024.1,0.26510405]
[1610399899127,5.61899,1024.5,1024.1,0.26510405]
[1610399899326,62.8104,1024.4,1024.1,0.26510405]
[1610399899926,62.8104,1024.4,1024.0,0.26540425]
[1610399900127,4.00959,1024.1,1024.0,0.26540425]
[1610399900527,74.4892,1024.0,1023.9,0.26607925]
[1610399901229,74.4892,1024.0,1023.8,0.26680445]
[1610399901929,74.4892,1024.0,1023.7,0.26652608]
[1610399902129,4.00959,1023.8,1023.7,0.26652608]
[1610399902330,6.49379,1023.8,1023.7,0.26652608]
[1610399902730,61.80449,1023.8,1023.7,0.26652608]
[1610399903732,2.4842,1023.8,1023.7,0.26652608]
[1610399903931,68.5343,1023.7,1023.6,0.26671693]
[1610399904132,72.54389,1023.7,1023.5,0.26689525]
[1610399904531,4.00959,1023.7,1023.5,0.26689525]
[1610399904734,66.7269,1023.6,1023.5,0.26689525]
[1610399905534,66.7269,1023.6,1023.4,0.5337905]
[1610399905535,66.7269,1023.6,1023.4,0.26706982]
[1610399906135,4.00959,1023.5,1023.3,0.26727428]
[1610399906537,1.8763,1023.5,1023.3,0.26727428]
[1610399907237,1.8763,1023.5,1023.4,0.26735295]
[1610399907437,2.4842,1023.8,1023.4,0.53480263]
[1610399907637,2.3802,1024.1,1023.4,0.53480263]
[1610399907837,12.8144,1024.3,1023.3,0.53480906]
[1610399908040,6.4565,1024.3,1023.3,0.53480906]
[1610399908239,4.00959,1023.4,1023.3,0.80168733]
[1610399908640,4.00959,1023.4,1023.3,0.53329604]
[1610399908839,4.00959,1023.4,1023.3,0.26618846]
[1610399909240,4.00959,1023.4,1023.3,0.53114633]
[1610399909550,4.00959,1023.4,1023.3,0.26551394]
[1610399911643,4.00959,1023.4,1023.3,0.5289297]
[1610399911942,4.00959,1023.4,1023.3,0.2642118]
[1610399913044,1.5286,1023.9,1023.3,0.2642118]
[1610399913444,1.5286,1023.9,1023.4,0.2628322]
[1610399913843,2.2675,1024.2,1023.4,0.2628322]
[1610399914046,2.2675,1024.2,1023.5,0.26202641]
[1610399914245,4.00959,1024.0,1023.5,0.26202641]
[1610399914444,5.93059,1024.0,1023.5,0.26202641]
[1610399914846,5.93059,1024.0,1023.4,0.26187502]
[1610399916251,4.00959,1023.6,1023.5,0.26261287]
[1610399916853,4.00959,1023.6,1023.4,0.26319871]
[1610399917754,4.00959,1023.6,1023.3,0.26366071]
[1610399918957,1.5526,1023.7,1023.3,0.26366071]
[1610399919358,1.921,1024.0,1023.3,8.97946071]
[1610399919553,1.6094,1024.5,1023.5,0.26163455]
[1610399919756,57.2102,1025.5,1023.7,0.26120459]
[1610399920155,57.2102,1025.5,1023.9,0.26062528]
[1610399920354,4.00959,1025.4,1024.3,4.00959]
[1610399920555,6.44769,1025.4,1024.3,4.00959]
[1610399920754,6.44769,1025.4,1024.3,4.26910676]
[1610399921153,6.44769,1025.4,1024.4,0.25932998]
[1610399921955,6.44769,1025.4,1024.6,0.25862283]
[1610399922355,6.44769,1025.4,1024.9,4.00959]
[1610399923956,2.4381,1025.4,1024.9,4.00959]
[1610399924156,80.7828,1026.1,1024.9,4.00959]
[1610399924357,4.00959,1025.7,1025.1,4.00959]
[1610399924957,1.776,1025.8,1025.1,4.00959]
[1610399926358,1.776,1025.8,1025.5,4.00959]
[1610399926558,1.776,1025.8,1025.0,2.6966472]
[1610399927059,1.776,1025.8,1024.9,0.25751918]
[1610399927258,1.776,1025.8,1024.8,0.25793546]
[1610399927858,1.776,1025.8,1024.7,0.25815866]
[1610399928261,4.00959,1024.9,1024.6,0.25824834]
[1610399928659,4.00959,1024.9,1024.5,0.2585321]
[1610399930860,4.00959,1024.9,1024.4,0.25964933]
[1610399932163,4.00959,1024.9,1024.3,0.26029723]
[1610399932362,4.00959,1024.4,1024.3,0.26029723]
[1610399932563,4.00959,1024.4,1024.1,0.26023941]
[1610399932564,5.55169,1024.4,1024.1,0.26023941]
[1610399932966,5.55169,1024.4,1024.0,0.26036814]
[1610399933365,5.55169,1024.4,1023.8,0.26089868]
[1610399933964,5.55169,1024.4,1023.7,0.26210263]
[1610399934164,5.55169,1024.4,1023.8,0.26233287]
[1610399934363,4.00959,1023.9,1023.8,0.26233287]
[1610399934564,4.00959,1023.9,1023.7,0.26233308]
[1610399934964,4.00959,1023.9,1023.8,0.26250711]
[1610399935172,4.00959,1023.9,1023.7,0.26268326]
[1610399935966,4.00959,1023.9,1023.6,0.26378504]
[1610399936365,4.00959,1023.9,1023.4,0.79135511]
[1610399936366,4.00959,1023.7,1023.4,0.26443465]
[1610399936768,5.53919,1023.7,1023.3,0.2645857]
[1610399937766,69.3062,1023.3,1023.1,0.26506654]
[1610399937967,70.8245,1023.3,1023.0,0.26525849]
[1610399938267,70.8245,1023.3,1022.9,0.26541133]
[1610399938467,4.00959,1023.0,1022.9,0.26541133]
[1610399939370,4.00959,1023.0,1022.8,0.26654653]
[1610399940271,4.00959,1023.0,1022.7,0.26749909]